bitfinex-derivatives/quotes_SOLF0:USTF0_20251216
["timestamp","ask_amount","ask_price","bid_price","bid_amount"]
[1765880634280,8.2071,126.66,126.65,0.05972549]
[1765880635286,8.2071,126.66,126.65,3.43972549]
[1765880639989,1.1,126.66,126.65,3.43972549]
[1765880644689,0.00340074,126.67,126.65,3.43972549]
[1765880645189,1.09340074,126.67,126.65,3.43972549]
[1765880648579,0.00340074,126.67,126.66,7.1071]
[1765880650095,0.00340074,126.67,126.66,10.3971]
[1765880650499,0.00340074,126.67,126.66,7.1071]
[1765880652392,69.71374037,126.72,126.65,2.69346586]
[1765880652598,69.71374037,126.72,126.69,7.1053]
[1765880652896,69.71374037,126.72,126.7,3.29]
[1765880653488,70.84717601,126.72,126.7,3.34579907]
[1765880654496,1.09,126.71,126.7,0.05579907]
[1765880654697,1.13343564,126.72,126.7,3.34579907]
[1765880654898,1.09,126.71,126.7,0.05579907]
[1765880655597,1.09,126.71,126.7,3.34579907]
[1765880655998,8.1943,126.71,126.7,0.05579907]
[1765880657799,10.82565742,126.71,126.7,0.05579907]
[1765880664910,10.82565742,126.71,126.7,3.34579907]
[1765880664911,7.1043,126.71,126.7,3.34579907]
[1765880669905,8.23733564,126.72,126.7,3.34579907]
[1765880670501,0.04343564,126.72,126.7,3.34579907]
[1765880672009,0.04343564,126.72,126.71,3.36]
[1765880673926,0.04343564,126.72,126.71,10.4643]
[1765880674224,0.04343564,126.72,126.71,3.36]
[1765880675322,0.04343564,126.72,126.71,10.4643]
[1765880676921,0.04343564,126.72,126.7,3.35579907]
[1765880676922,1.13343564,126.72,126.7,3.35579907]
[1765880677621,0.04343564,126.72,126.7,3.35579907]
[1765880679231,0.04343564,126.72,126.7,10.46009907]
[1765880679631,0.04343564,126.72,126.71,3.3]
[1765880680025,8.2315,126.77,126.74,3.3]
[1765880681030,8.2315,126.77,126.74,3.35036424]
[1765880682625,7.1015,126.77,126.75,3.3]
[1765880682826,1.13,126.78,126.75,3.3]
[1765880683027,1.13,126.78,126.75,3.3516497]
[1765880683933,8.2305,126.78,126.75,10.4537497]
[1765880685236,8.2305,126.78,126.75,3.3516497]
[1765880685534,1.13,126.77,126.75,3.3516497]
[1765880688428,8.2305,126.78,126.75,3.3516497]
[1765880694237,1.13,126.77,126.75,3.3516497]
[1765880694744,1.13,126.76,126.75,0.0516497]
[1765880695033,1.13,126.76,126.75,3.3516497]
[1765880695238,1.13,126.76,126.75,0.0516497]
[1765880696038,8.2315,126.76,126.75,0.0516497]
[1765880707434,7.101,126.77,126.75,0.0516497]
[1765880707639,8.231,126.77,126.75,3.4116497]
[1765880708543,1.13,126.76,126.75,0.0516497]
[1765880710651,8.2315,126.76,126.75,0.0516497]
[1765880720857,1.13,126.77,126.75,3.4116497]
[1765880721451,1.13,126.77,126.75,0.0516497]
[1765880723161,1.13,126.76,126.75,0.0516497]
[1765880724270,8.2315,126.76,126.75,0.0516497]
[1765880727168,1.13,126.74,126.72,3.36]
[1765880727964,1.1816497,126.74,126.72,3.41445697]
[1765880728869,8.2843497,126.74,126.72,3.41445697]
[1765880729069,1.1816497,126.74,126.72,3.41445697]
[1765880739282,8.2332,126.73,126.72,0.05445697]
[1765880739476,1.13,126.73,126.72,0.05445697]
[1765880739681,0.0516497,126.74,126.72,3.46445697]
[1765880740179,1.1816497,126.74,126.72,3.46445697]
[1765880741792,0.0516497,126.74,126.72,3.46445697]
[1765880741976,1.1816497,126.74,126.72,3.46445697]
[1765880742877,0.0516497,126.74,126.73,3.41]
[1765880743379,0.0516497,126.74,126.73,10.5132]
[1765880744387,7.1004,126.78,126.75,3.41]
[1765880745283,7.1004,126.78,126.75,3.47052027]
[1765880745687,8.2804,126.78,126.75,3.47052027]
[1765880746786,1.18,126.79,126.75,3.47052027]
[1765880746987,1.18,126.79,126.76,3.41]
[1765880747893,7.0999,126.79,126.76,3.41]
[1765880748192,1.18,126.8,126.77,3.41]
[1765880748484,2.629303,126.81,126.77,3.46948888]
[1765880748485,1.18,126.81,126.77,3.46948888]
[1765880749187,1.18,126.81,126.77,10.56988888]
[1765880749390,1.18,126.81,126.78,3.41]
[1765880750888,8.2787,126.81,126.78,3.41]
[1765880752687,1.18,126.8,126.78,3.41]
[1765880752887,1.18,126.8,126.77,3.46948888]
[1765880753687,1.18,126.79,126.77,3.46948888]
[1765880753891,8.2794,126.8,126.77,3.46948888]
[1765880757594,8.2794,126.8,126.78,3.41]
[1765880758495,1.18,126.8,126.78,3.41]
[1765880761995,1.18,126.81,126.79,3.41]
[1765880767102,8.2788,126.81,126.79,3.41]
[1765880770905,8.2783,126.82,126.8,3.17]
[1765880771207,8.2783,126.82,126.8,3.22887452]
[1765880773000,8.2777,126.83,126.81,3.17]
[1765880773208,1.18,126.86,126.81,3.17]
[1765880773400,1.18,126.88,126.83,3.17]
[1765880773594,1.18,126.87,126.85,3.17]
[1765880773805,8.2758,126.87,126.85,3.17]
[1765880774005,1.18,126.86,126.85,3.17]
[1765880774902,8.2758,126.87,126.85,3.17]
[1765880775301,8.2759,126.86,126.84,3.21978723]
[1765880778314,1.18,126.86,126.84,3.21978723]
[1765880778812,1.18,126.87,126.85,3.17]
[1765880779216,8.2753,126.88,126.85,3.17]
[1765880779908,1.18,126.87,126.85,3.17]
[1765880782613,1.18,126.86,126.84,3.21978723]
[1765880785213,1.18,126.86,126.85,3.17]
[1765880785419,9.724203,126.88,126.85,3.17]
[1765880785610,1.18,126.87,126.85,3.17]
[1765880790419,1.18,126.93,126.88,3.17]
[1765880790724,1.18,126.93,126.9,3.17]
[1765880790919,1.18,126.93,126.91,3.17]
[1765880791119,1.18,126.92,126.89,0.05183982]
[1765880791425,66.98,126.91,126.89,3.22183982]
[1765880792216,1.18,126.92,126.89,10.31603982]
[1765880794025,8.2726,126.92,126.89,10.31603982]
[1765880794222,1.17,126.91,126.89,0.05183982]
[1765880795917,8.2637,126.9,126.89,0.05183982]
[1765880797324,66.98,126.93,126.89,3.32183982]
[1765880797527,68.15,126.93,126.89,3.32183982]
[1765880797727,1.17,126.92,126.89,3.32183982]
[1765880797930,8.2626,126.92,126.89,3.32183982]
[1765880798529,66.98,126.91,126.89,3.32183982]
[1765880800132,75.2426,126.92,126.89,3.32183982]
[1765880800836,8.2626,126.92,126.89,3.32183982]
[1765880801033,66.98,126.91,126.89,3.32183982]
[1765880802140,75.2426,126.92,126.89,3.32183982]
[1765880803735,75.2226,126.92,126.89,3.32183982]
[1765880804333,68.13,126.92,126.9,3.27]
[1765880804832,1.17,126.92,126.9,3.27]
[1765880805041,68.13,126.92,126.9,10.3637]
[1765880806237,68.13,126.92,126.9,3.27]
[1765880806437,1.17,126.91,126.89,3.32183982]
[1765880807137,1.17,126.91,126.89,10.41603982]
[1765880807731,1.17,126.94,126.91,3.27]
[1765880808041,1.17,126.94,126.91,3.32337766]
[1765880808428,1.17,126.94,126.92,10.3625]
[1765880809046,1.17,126.94,126.92,3.27]
[1765880809345,8.2615,126.94,126.92,3.27]
[1765880810142,124.4547,126.99,126.93,3.27]
[1765880810143,1.17,126.97,126.93,3.27]
[1765880810346,1.17,126.97,126.94,0.05243558]
[1765880812030,1.17,126.95,126.94,0.05243558]
[1765880812944,8.2609,126.95,126.94,0.05243558]
[1765880815143,1.17,126.95,126.94,0.05243558]
[1765880817339,8.2609,126.95,126.94,0.05243558]
[1765880818844,8.2609,126.95,126.94,0.00243558]
[1765880819045,75.2209,126.95,126.94,0.00243558]
[1765880824648,1.12,126.91,126.89,3.27]
[1765880824854,66.96,126.91,126.89,3.27]
[1765880825655,68.08,126.91,126.89,3.27]
[1765880825855,68.13022282,126.91,126.89,3.32773087]
[1765880826956,0.05022282,126.91,126.9,3.25]
[1765880839657,0.05022282,126.91,126.9,10.3437]
[1765880842064,1.17022282,126.91,126.89,3.30773087]
[1765880842362,0.05022282,126.91,126.89,3.30773087]
[1765880842564,0.05022282,126.91,126.9,3.25]
[1765880842951,1.17022282,126.91,126.9,3.25]
[1765880843157,0.05022282,126.91,126.9,3.25]
[1765880843862,1.17022282,126.91,126.9,3.25]
[1765880844166,1.17022282,126.91,126.89,7.15173087]
[1765880844363,1.17022282,126.91,126.9,3.25]
[1765880845362,1.17022282,126.91,126.89,3.30773087]
[1765880852160,1.12,126.9,126.89,3.30773087]
[1765880852669,8.26362282,126.91,126.89,3.30773087]
[1765880854372,1.17022282,126.91,126.89,3.30773087]
[1765880854570,0.05022282,126.91,126.89,3.30773087]
[1765880855372,1.17022282,126.91,126.89,3.30773087]
[1765880856275,0.05022282,126.91,126.89,3.30773087]
[1765880859479,3.79271232,126.91,126.89,3.30773087]
[1765880860579,1.17022282,126.91,126.89,3.30773087]
[1765880861475,8.26362282,126.91,126.89,3.30773087]
[1765880865486,7.0937,126.9,126.89,3.30773087]
[1765880875001,0.05022282,126.91,126.89,3.30773087]
[1765880875197,1.17022282,126.91,126.89,3.30773087]
[1765880875896,1.17022282,126.91,126.89,10.40193087]
[1765880876097,1.17022282,126.91,126.9,3.33]
[1765880880997,0.05022282,126.91,126.9,3.33]
[1765880889702,1.12,126.9,126.89,0.05773087]
[1765880889901,3.74284308,126.9,126.89,0.05773087]
[1765880891001,10.83654308,126.9,126.89,0.05773087]
[1765880894103,16.86192508,126.9,126.89,0.05773087]
[1765880896311,10.83654308,126.9,126.89,0.05773087]
[1765880906819,7.0937,126.9,126.89,3.33773087]
[1765880907021,75.1737,126.9,126.89,3.33773087]
[1765880908124,75.1737,126.9,126.89,0.05773087]
[1765880908823,75.1737,126.9,126.89,3.33773087]
[1765880909324,1.06,126.89,126.81,3.28]
[1765880909530,10.77944308,126.85,126.81,3.28]
[1765880909713,1.06,126.84,126.81,3.28]
[1765880909913,10.78054308,126.83,126.81,3.28]
[1765880910318,10.83302713,126.83,126.81,3.33001814]
[1765880910519,1.06,126.82,126.81,0.05001814]
[1765880910824,1.06,126.8,126.77,3.28]
[1765880911021,1.06,126.79,126.76,3.28]
[1765880911224,1.06,126.77,126.74,3.28]
[1765880911427,8.1611,126.77,126.74,3.28]
[1765880911923,8.21819211,126.77,126.74,3.33950344]
[1765880913618,10.84103519,126.77,126.74,3.33950344]
[1765880914624,1.06,126.76,126.74,3.33950344]
[1765880917214,8.162,126.76,126.74,3.33950344]
[1765880920524,1.06,126.75,126.74,0.05950344]
[1765880920724,8.1627,126.74,126.72,3.29]
[1765880920923,1.06,126.73,126.7,3.29]
[1765880921923,1.06,126.72,126.7,3.34760708]
[1765880922129,1.06,126.72,126.7,0.05760708]
[1765880922632,1.06,126.71,126.7,0.05760708]
[1765880926536,8.164,126.72,126.7,3.34760708]
[1765880928129,1.11953166,126.73,126.7,3.34760708]
[1765880928332,68.15953166,126.73,126.7,3.34760708]
[1765880929934,75.26273166,126.73,126.7,3.34760708]
[1765880931437,1.11953166,126.73,126.7,3.34760708]
[1765880931638,0.05953166,126.73,126.7,3.34760708]
[1765880932338,1.11953166,126.73,126.71,3.29]
[1765880933042,0.05953166,126.73,126.71,3.29]
[1765880940457,0.05953166,126.73,126.72,3.29]
[1765880947058,0.05953166,126.73,126.72,10.3938]
[1765880947651,0.05953166,126.73,126.72,3.29]
[1765880950161,0.05953166,126.73,126.72,10.3938]
[1765880950466,75.2315,126.77,126.73,3.24]
[1765880950657,8.1715,126.77,126.73,3.24]
[1765880951054,7.1015,126.77,126.74,3.24]
[1765880951566,0.05363058,126.77,126.74,3.29891151]
[1765880952165,0.05363058,126.77,126.74,10.40151151]
[1765880952368,0.05363058,126.77,126.75,3.24]
[1765880958971,0.05363058,126.77,126.75,10.342]
[1765880959268,0.05363058,126.77,126.76,3.24]
[1765880960269,1.18363058,126.77,126.75,3.24]
[1765880960569,1.18363058,126.77,126.74,3.29891151]
[1765880961170,1.18363058,126.77,126.75,3.24]
[1765880962765,0.05363058,126.77,126.75,3.24]
[1765880963166,1.18363058,126.77,126.75,3.24]
[1765880964771,1.13,126.76,126.75,3.24]
[1765880965179,8.28493058,126.77,126.75,3.24]
[1765880968278,0.05363058,126.77,126.75,10.3421]
[1765880968578,0.05363058,126.77,126.76,3.24]
[1765880972793,7.15463058,126.77,126.76,3.24]
[1765880972982,8.28463058,126.77,126.76,3.24]
[1765880973184,8.28463058,126.77,126.75,3.31]
[1765880973983,7.15463058,126.77,126.75,3.31]
[1765880974182,8.28463058,126.77,126.75,3.31]
[1765880981291,1.13,126.76,126.75,3.31]
[1765880985597,1.13,126.76,126.74,0.05891151]
[1765880985598,8.2315,126.76,126.74,3.29891151]
[1765880996605,7.1015,126.76,126.74,3.29891151]
[1765880996811,8.2315,126.76,126.74,3.29891151]
[1765881000713,8.2321,126.75,126.74,0.05891151]
[1765881001416,8.2321,126.75,126.74,3.29891151]
[1765881001616,7.1021,126.75,126.74,3.29891151]
[1765881002001,0.05363058,126.77,126.74,5.92761539]
[1765881002206,1.18,126.83,126.77,3.24]
[1765881002413,7.11604494,126.82,126.79,3.24]
[1765881002613,8.2783,126.82,126.79,3.24]
[1765881003208,8.33742143,126.82,126.79,3.29956668]
[1765881004117,1.23912143,126.82,126.8,3.25]
[1765881004418,0.05912143,126.82,126.8,3.25]
[1765881005808,1.22912143,126.82,126.8,3.25]
[1765881007908,0.05912143,126.82,126.8,3.25]
[1765881008121,1.22912143,126.82,126.8,3.25]
[1765881008811,1.17,126.8,126.79,0.05956668]
[1765881009007,3.79870388,126.8,126.79,0.05956668]
[1765881010721,10.89800388,126.8,126.79,0.05956668]
[1765881010908,3.79870388,126.77,126.75,3.25]
[1765881011824,3.85507152,126.77,126.75,3.30823096]
[1765881012123,10.95617152,126.77,126.75,3.30823096]
[1765881013927,3.85507152,126.77,126.75,3.30823096]
[1765881014119,0.05636764,126.77,126.75,3.30823096]
[1765881015027,0.05636764,126.77,126.76,3.25]
[1765881015622,0.05636764,126.77,126.76,10.3515]
[1765881015822,0.05636764,126.77,126.76,3.25]
[1765881019931,10.95617152,126.77,126.75,3.30823096]
[1765881020131,1.17,126.76,126.75,0.05823096]
[1765881020317,10.95617152,126.77,126.75,3.30823096]
[1765881022331,1.17,126.76,126.75,3.30823096]
[1765881022632,10.95617152,126.77,126.75,3.30823096]
[1765881024038,8.2715,126.76,126.75,0.05823096]
[1765881033031,10.96607152,126.77,126.75,3.31823096]
[1765881034038,1.18,126.76,126.75,3.31823096]
[1765881035336,0.05636764,126.77,126.75,3.31823096]
[1765881035531,0.05636764,126.77,126.75,5.94693484]
[1765881035744,0.05636764,126.77,126.76,3.28]
[1765881035943,67.04,126.81,126.78,7.0999]
[1765881036143,67.04,126.81,126.79,3.28]
[1765881036938,67.09082141,126.81,126.79,3.33166749]
[1765881037143,68.32082141,126.81,126.79,3.33166749]
[1765881037745,67.09082141,126.81,126.8,3.28]
[1765881039143,67.09082141,126.81,126.8,10.3793]
[1765881039144,0.05082141,126.81,126.8,10.3793]
[1765881039652,0.05082141,126.81,126.8,3.28]
[1765881039849,1.28082141,126.81,126.79,3.33166749]
[1765881041550,1.28082141,126.81,126.79,0.05166749]
[1765881042350,1.23,126.8,126.79,0.05166749]
[1765881042845,8.3293,126.8,126.79,0.05166749]
[1765881061171,8.3293,126.8,126.79,3.33166749]
[1765881061672,8.3293,126.8,126.79,0.05166749]
[1765881065164,75.41962141,126.81,126.79,3.13166749]
[1765881065665,8.37962141,126.81,126.79,3.13166749]
[1765881065866,75.41962141,126.81,126.79,3.13166749]
[1765881067175,1.23,126.8,126.79,3.13166749]
[1765881067368,1.23,126.8,126.79,0.05166749]
[1765881067568,8.3293,126.8,126.79,0.05166749]
[1765881073981,67.07082141,126.81,126.79,3.13166749]
[1765881073982,68.30082141,126.81,126.79,3.13166749]
[1765881076173,0.05082141,126.81,126.79,3.13166749]
[1765881077887,0.05082141,126.81,126.8,10.1793]
[1765881081481,1.28,126.86,126.82,3.08]
[1765881082593,0.05484106,126.85,126.84,3.08]
[1765881082992,7.15154106,126.85,126.84,3.08]
[1765881083697,1.28,126.84,126.83,0.05819208]
[1765881083882,8.3771,126.84,126.83,0.05819208]
[1765881089498,8.43144106,126.85,126.83,3.13819208]
[1765881092096,8.3771,126.84,126.83,0.05819208]
[1765881100606,8.3193,126.8,126.78,3.38]
[1765881101005,1.22,126.8,126.76,3.38]
[1765881101600,8.38045629,126.79,126.77,3.43940702]
[1765881103101,1.28055629,126.79,126.77,3.43940702]
[1765881103310,0.06055629,126.79,126.77,3.43940702]
[1765881103804,1.28055629,126.79,126.77,3.43940702]
[1765881104204,8.38055629,126.79,126.77,3.43940702]
[1765881109713,7.16055629,126.79,126.77,3.43940702]
[1765881109915,8.38055629,126.79,126.77,3.43940702]
[1765881110412,7.16055629,126.79,126.77,3.43940702]
[1765881111014,8.38055629,126.79,126.77,3.43940702]
[1765881120227,0.06055629,126.79,126.78,3.38]
[1765881121018,0.06055629,126.79,126.78,10.4804]
[1765881121626,1.22,126.82,126.8,3.38]
[1765881122627,1.27653921,126.82,126.8,3.43479897]
[1765881124017,0.05653921,126.82,126.8,10.53399897]
[1765881124731,0.05653921,126.82,126.81,3.27]
[1765881126325,0.05653921,126.82,126.81,10.3687]
[1765881130634,0.05653921,126.82,126.81,3.27]
[1765881131222,0.05653921,126.82,126.81,10.3687]
[1765881136540,0.05653921,126.82,126.81,3.27]
[1765881136737,1.27653921,126.82,126.81,3.27]
[1765881138841,0.05653921,126.82,126.81,3.27]
[1765881140138,0.05653921,126.82,126.81,10.3687]
[1765881144641,0.05653921,126.82,126.81,3.27]
[1765881161050,7.3603703,126.88,126.82,3.32]
[1765881161244,5.97587154,126.87,126.83,3.32]
[1765881161445,1.28,126.88,126.83,3.32]
[1765881161641,7.0955,126.87,126.84,3.32]
[1765881162042,7.0955,126.87,126.84,3.37740482]
[1765881162246,7.0955,126.87,126.85,3.32]
[1765881167956,1.28,126.89,126.85,3.32]
[1765881167957,8.3748,126.89,126.85,3.32]
[1765881168149,1.28,126.88,126.85,3.32]
[1765881168957,8.3749,126.88,126.85,3.32]
[1765881170058,8.3743,126.89,126.86,3.32]
[1765881170257,8.3743,126.89,126.86,3.3781823]
[1765881170649,1.28,126.88,126.86,3.3781823]
[1765881172764,1.28,126.87,126.86,0.0581823]
[1765881173364,1.28,126.87,126.86,3.3781823]
[1765881173970,8.3754,126.87,126.86,0.0581823]
[1765881174470,8.3754,126.87,126.86,3.3781823]
[1765881174675,1.28,126.87,126.86,3.3781823]
[1765881176970,1.28,126.87,126.86,0.0581823]
[1765881177370,8.3754,126.87,126.86,0.0581823]
[1765881182268,1.22,126.84,126.81,3.32]
[1765881182656,181.47357826,126.87,126.81,3.32]
[1765881182862,1.22,126.86,126.81,3.32]
[1765881183270,0.05303101,126.85,126.83,3.32]
[1765881183471,1.26303101,126.85,126.83,3.32]
[1765881183869,8.35973101,126.85,126.83,3.32]
[1765881184269,7.14973101,126.85,126.83,3.32]
[1765881184872,8.35973101,126.85,126.83,3.32]
[1765881195787,1.21,126.84,126.82,7.15471024]
[1765881195989,1.21,126.84,126.83,3.17]
[1765881196177,8.35973101,126.85,126.83,3.17]
[1765881196381,1.21,126.84,126.83,3.17]
[1765881197588,8.35973101,126.85,126.83,3.17]
[1765881198581,0.05303101,126.85,126.83,3.17]
[1765881199890,1.26303101,126.85,126.84,3.17]
[1765881200883,0.05303101,126.85,126.84,3.17]
[1765881207797,1.26303101,126.85,126.84,3.17]
[1765881208000,1.26303101,126.85,126.83,3.17]
[1765881208499,0.05303101,126.85,126.83,3.17]
[1765881217009,0.00303101,126.85,126.84,3.19]
[1765881217910,0.00303101,126.85,126.84,10.2871]
[1765881221015,7.0937,126.91,126.88,3.19]
[1765881221316,1.26,126.93,126.88,3.19]
[1765881221905,1.26,126.93,126.89,0.05808458]
[1765881222210,1.26,126.93,126.9,3.19]
[1765881222414,1.26,126.93,126.89,3.24808458]
[1765881223016,8.3531,126.91,126.89,3.24808458]
[1765881223414,10.97601955,126.91,126.89,3.24808458]
[1765881224815,1.26,126.9,126.89,3.24808458]
[1765881225317,10.97601955,126.91,126.89,3.24808458]
[1765881225518,7.0937,126.9,126.89,3.24808458]
[1765881225718,8.3537,126.9,126.89,3.24808458]
[1765881226718,8.3537,126.9,126.89,0.05808458]
[1765881239034,7.0937,126.9,126.89,3.24808458]
[1765881240026,8.3537,126.9,126.89,3.24808458]
[1765881240322,8.3537,126.9,126.89,0.05808458]
[1765881246334,10.97661955,126.9,126.89,0.05808458]
[1765881248933,8.3537,126.9,126.89,0.05808458]
[1765881249135,10.97661955,126.9,126.89,0.05808458]
[1765881251741,8.3656,126.87,126.85,3.38]
[1765881252247,8.3659,126.86,126.85,3.38]
[1765881252635,7.0959,126.86,126.85,3.38]
[1765881253231,8.3659,126.86,126.84,3.43152816]
[1765881253640,7.0959,126.86,126.84,3.43152816]
[1765881260346,8.3659,126.86,126.84,3.43152816]
[1765881260741,1.27,126.85,126.84,3.43152816]
[1765881260936,8.3659,126.86,126.84,3.43152816]
[1765881262045,7.0965,126.85,126.84,3.43152816]
[1765881263043,0.05865506,126.87,126.84,3.43152816]
[1765881263247,0.05865506,126.87,126.85,3.38]
[1765881263643,7.15415506,126.87,126.85,3.38]
[1765881271351,0.05865506,126.87,126.85,3.38]
[1765881277856,0.05865506,126.87,126.85,10.4764]
[1765881278155,0.05865506,126.87,126.85,7.0964]
[1765881278367,0.05865506,126.87,126.86,3.16]
[1765881280154,0.05865506,126.87,126.86,12.87947692]
[1765881280958,1.27,126.91,126.89,3.16]
[1765881281951,1.27,126.91,126.89,3.21856876]
[1765881282560,8.423,126.92,126.89,3.21856876]
[1765881283445,1.33,126.91,126.89,3.21856876]
[1765881284954,1.33,126.9,126.89,0.05856876]
[1765881285661,8.4237,126.9,126.89,0.05856876]
[1765881289872,7.0932,126.91,126.89,3.21856876]
[1765881290166,1.33,126.92,126.89,3.21856876]
[1765881291951,8.4228,126.92,126.89,3.21856876]
[1765881292666,8.4228,126.92,126.9,3.16]
[1765881292667,1.33,126.92,126.9,3.16]
[1765881298370,8.4222,126.93,126.9,3.16]
[1765881298875,1.33,126.92,126.9,3.16]
[1765881302969,1.33,126.93,126.9,3.16]
[1765881303168,1.33,126.93,126.9,3.21304353]
[1765881303470,71.07716644,126.96,126.9,3.21304353]
[1765881303471,1.33,126.95,126.9,3.21304353]
[1765881307171,1.33,126.97,126.9,3.21304353]
[1765881307369,1.33,126.97,126.93,3.22]
[1765881317675,63.90716644,126.99,126.93,3.22]
[1765881317880,1.33,126.99,126.96,3.22]
[1765881320871,1.33,127.01,126.96,3.22]
[1765881321072,1.33,127.01,126.98,3.22]
[1765881330586,5.42716644,127.02,126.98,3.22]
[1765881330779,2.80039096,127.04,126.98,3.22]
[1765881330780,1.33,127.03,126.98,3.22]
[1765881330986,1.33,127.03,127.0,3.22]
[1765881338890,1.32,127.01,126.99,0.0523024]
[1765881341188,5.41324603,127.01,126.99,0.0523024]
[1765881341796,1.32,127.0,126.99,0.0523024]
[1765881345506,3.9396148,127.0,126.99,0.0523024]
[1765881350610,11.0277148,127.0,126.99,0.0523024]
[1765881352206,8.4081,127.0,126.99,0.0523024]
[1765881352508,11.0277148,127.0,126.99,0.0523024]
[1765881353410,11.0277148,127.0,126.95,3.11]
[1765881353411,1.32,126.97,126.95,3.11]
[1765881353613,3.9396148,126.97,126.95,3.11]
[1765881354403,3.99649801,126.97,126.95,3.16867968]
[1765881355211,1.32,126.96,126.95,0.05867968]
[1765881356208,11.08629801,126.97,126.95,3.16867968]
[1765881356813,8.46668321,126.97,126.95,3.16867968]
[1765881357012,2.6196148,126.96,126.95,3.16867968]
[1765881357412,1.37688321,126.97,126.95,3.16867968]
[1765881360518,0.05688321,126.97,126.95,3.16867968]
[1765881361623,0.05688321,126.97,126.96,10.2004]
[1765881361924,0.05688321,126.97,126.96,3.11]
[1765881365919,0.05688321,126.97,126.96,10.2004]
[1765881375432,0.05688321,126.97,126.96,3.11]
[1765881384038,0.05688321,126.97,126.96,10.2004]
[1765881386541,0.05688321,126.97,126.96,12.8200148]
[1765881395647,1.38,127.03,126.98,3.35]
[1765881395946,1.38,127.03,126.99,3.35]
[1765881396648,1.38,127.03,127.01,3.35]
[1765881397037,2.80039096,127.04,127.02,3.35]
[1765881397249,2.80039096,127.04,127.03,5.9696148]
[1765881397754,2.80039096,127.04,127.03,13.0560148]
[1765881398452,0.00039096,127.04,127.03,13.0560148]
[1765881399156,0.00039096,127.04,127.03,3.35]
[1765881400446,0.00039096,127.04,127.03,10.4364]
[1765881405158,0.00039096,127.04,127.03,77.3564]
[1765881405460,0.00039096,127.04,127.03,81.44256843]
[1765881406258,0.00039096,127.04,127.03,14.52256843]
[1765881406446,0.00039096,127.04,127.03,10.4364]
[1765881413768,3.31,127.09,127.06,3.35]
[1765881414064,3.31,127.09,127.06,3.40624706]
[1765881414460,3.31,127.09,127.07,3.35]
[1765881415058,3.31,127.1,127.07,3.35]
[1765881415464,3.31,127.1,127.08,3.35]
[1765881415665,3.31,127.1,127.07,7.0839]
[1765881415865,3.31,127.1,127.07,10.4339]
[1765881416067,3.31,127.1,127.08,3.35]
[1765881417054,10.3926,127.1,127.08,3.35]
[1765881417257,3.31,127.09,127.07,3.35]
[1765881417461,3.31,127.09,127.07,3.39982628]
[1765881417874,3.31,127.11,127.07,3.39982628]
[1765881418573,114.23850631,127.13,127.07,3.39982628]
[1765881418574,10.3929,127.1,127.07,3.39982628]
[1765881419273,114.23850631,127.13,127.07,3.39982628]
[1765881419274,3.31,127.08,127.07,0.04982628]
[1765881419463,3.31,127.1,127.07,3.39982628]
[1765881419658,10.3935,127.09,127.07,3.39982628]
[1765881421178,3.31,127.11,127.08,3.35]
[1765881421678,3.31,127.1,127.08,3.35]
[1765881422473,10.392,127.11,127.08,3.35]
[1765881422671,3.31,127.11,127.08,3.40267801]
[1765881423487,3.07,127.09,127.08,0.05267801]
[1765881423680,7.15690631,127.09,127.08,0.05267801]
[1765881423985,15.82000631,127.09,127.08,0.05267801]
[1765881424189,3.07,127.08,127.04,3.29]
[1765881424690,10.1535,127.09,127.05,3.29]
[1765881425087,3.12055244,127.08,127.06,3.34150519]
[1765881425489,0.05055244,127.08,127.06,3.34150519]
[1765881425990,0.05055244,127.08,127.06,10.42630519]